bitfinex/quotes_ETHUSD_20251008
["timestamp","ask_amount","ask_price","bid_price","bid_amount"]
[1759947895225,2.2054197,4538.4,4538.3,8.563]
[1759947895435,0.002,4538.4,4538.3,8.563]
[1759947895741,2.2054197,4538.4,4538.3,8.563]
[1759947896102,0.1096,4538.3,4537.8,0.001]
[1759947896309,0.1096,4538.3,4537.9,6.634]
[1759947896635,0.1096,4538.3,4537.9,7.0736]
[1759947897439,0.1096,4538.3,4537.9,6.634]
[1759947897936,0.1096,4538.1,4537.9,6.634]
[1759947898542,2.31320193,4538.1,4537.8,0.001]
[1759947898740,2.31320193,4538.1,4537.9,8.563]
[1759947898741,2.30291392,4538.0,4537.9,8.563]
[1759947899319,2.30291392,4538.0,4537.9,6.272]
[1759947899320,2.20361392,4538.0,4537.9,6.272]
[1759947899524,2.30291392,4538.0,4537.9,6.272]
[1759947899929,2.20366248,4537.9,4537.8,0.001]
[1759947900116,5.50330196,4537.9,4537.8,0.001]
[1759947900319,6.28377355,4537.9,4537.8,0.001]
[1759947900513,7.02809142,4537.9,4537.8,0.001]
[1759947900910,7.81635578,4537.9,4537.8,0.001]
[1759947901135,13.88254341,4537.9,4537.8,0.001]
[1759947901329,13.40833492,4537.9,4537.8,0.001]
[1759947901533,13.09419593,4537.9,4537.8,0.001]
[1759947901843,13.30004286,4537.9,4537.8,0.001]
[1759947902008,13.09419593,4537.9,4537.8,0.001]
[1759947902208,13.30005949,4537.9,4537.8,0.001]
[1759947902410,13.89132027,4537.9,4537.8,0.001]
[1759947903142,13.89048448,4537.9,4537.8,0.001]
[1759947903344,13.29903943,4537.9,4537.8,0.001]
[1759947905654,13.38729182,4537.9,4537.8,0.001]
[1759947905854,7.11529182,4537.9,4537.8,0.001]
[1759947906058,6.48169182,4537.9,4537.8,0.001]
[1759947906231,12.75469182,4537.9,4537.8,0.001]
[1759947906737,6.48169182,4537.9,4537.8,0.001]
[1759947909351,6.00853578,4537.9,4537.8,0.001]
[1759947909662,5.89781791,4537.9,4537.8,0.001]
[1759947909852,5.60370196,4537.9,4537.8,0.001]
[1759947913884,2.20385674,4537.5,4537.4,0.001]
[1759947914039,16.50779333,4537.5,4537.4,0.001]
[1759947914238,18.52819333,4537.5,4537.4,0.001]
[1759947915739,18.73325154,4537.5,4537.4,0.001]
[1759947916271,14.92447608,4537.5,4537.4,0.001]
[1759947916571,18.73325154,4537.5,4537.4,0.001]
[1759947916863,14.92447608,4537.5,4537.4,0.001]
[1759947917861,9.07901787,4537.5,4537.4,0.001]
[1759947918070,15.35301787,4537.5,4537.4,0.001]
[1759947918573,4.53624241,4537.5,4537.4,0.001]
[1759947918897,4.22425674,4537.5,4537.4,0.001]
[1759947920190,8.0330322,4537.5,4537.4,0.001]
[1759947920674,4.42946872,4537.5,4537.4,0.001]
[1759947920871,4.22425674,4537.5,4537.4,0.001]
[1759947921265,4.42947624,4537.5,4537.4,0.001]
[1759947921462,6.10108026,4537.5,4537.4,0.001]
[1759947921768,12.37508026,4537.5,4537.4,0.001]
[1759947922454,12.16986076,4537.5,4537.4,0.001]
[1759947922652,12.37522155,4537.5,4537.4,0.001]
[1759947923486,12.84875763,4537.5,4537.4,0.001]
[1759947928312,13.44020268,4537.5,4537.4,0.001]
[1759947929083,17.29113309,4537.5,4537.4,0.001]
[1759947929296,18.08010889,4537.5,4537.4,0.001]
[1759947930215,17.29113309,4537.5,4537.4,0.001]
[1759947930420,17.37938684,4537.5,4537.4,0.001]
[1759947931916,13.57061138,4537.5,4537.4,0.001]
[1759947934030,13.48235763,4537.5,4537.4,0.001]
[1759947935415,13.48339642,4537.5,4537.4,0.001]
[1759947936842,17.29217188,4537.5,4537.4,0.001]
[1759947938109,13.48339642,4537.5,4537.4,0.001]
[1759947939942,13.48239642,4537.5,4537.4,0.001]
[1759947940145,17.29117188,4537.5,4537.4,0.001]
[1759947940572,13.48239642,4537.5,4537.4,0.001]
[1759947941025,17.29117188,4537.5,4537.4,0.001]
[1759947941226,13.48239642,4537.5,4537.4,0.001]
[1759947942239,17.29117188,4537.5,4537.4,0.001]
[1759947943338,18.08014768,4537.5,4537.4,0.001]
[1759947944094,21.88892314,4537.5,4537.4,0.001]
[1759947944938,4.12390532,4537.4,4536.9,0.001]
[1759947945123,8.56647508,4537.0,4536.9,0.001]
[1759947945327,15.51941074,4537.0,4536.9,0.001]
[1759947945630,15.61981074,4537.0,4536.9,0.001]
[1759947947341,16.00811819,4537.0,4536.9,0.001]
[1759947947553,16.21460924,4537.0,4536.9,0.001]
[1759947947753,17.7662599,4537.0,4536.9,0.001]
[1759947948684,18.94873254,4537.0,4536.9,0.001]
[1759947948849,19.03700557,4537.0,4536.9,0.001]
[1759947949382,19.03700557,4537.0,4536.1,0.01]
[1759947949383,4.75794255,4536.5,4536.1,0.01]
[1759947949556,16.3120147,4536.5,4536.1,0.01]
[1759947949756,18.30240834,4536.5,4536.1,0.01]
[1759947950480,17.51013878,4536.5,4536.1,0.01]
[1759947951992,18.1038022,4536.5,4536.1,0.01]
[1759947952284,18.1034354,4536.5,4536.1,0.01]
[1759947952883,18.10329059,4536.5,4536.1,0.01]
[1759947953073,17.50977198,4536.5,4536.1,0.01]
[1759947953382,18.1032902,4536.5,4536.1,0.01]
[1759947953781,17.50977198,4536.5,4536.1,0.01]
[1759947954091,2.20497442,4535.2,4535.1,0.01]
[1759947954454,2.30577442,4535.2,4535.1,0.01]
[1759947955400,2.20497442,4535.2,4535.1,0.01]
[1759947956405,2.30577442,4535.2,4535.1,0.01]
[1759947959608,6.11454988,4535.2,4535.1,0.01]
[1759947960782,2.30577442,4535.2,4535.1,0.01]
[1759947962695,0.2404,4535.9,4535.1,0.01]
[1759947962928,2.20493413,4535.3,4535.1,0.01]
[1759947963454,2.20482945,4535.5,4535.1,0.01]
[1759947964052,2.30602945,4535.5,4535.1,0.01]
[1759947964253,2.20497442,4535.2,4535.1,0.01]
[1759947965259,2.30617442,4535.2,4535.1,6.283]
[1759947965620,3.33015713,4535.2,4535.1,0.01]
[1759947967563,3.33015713,4535.2,4535.1,0.011]
[1759947969466,5.25015713,4535.2,4535.1,0.011]
[1759947969767,5.45602475,4535.2,4535.1,0.011]
[1759947969963,9.86916274,4535.2,4535.1,0.011]
[1759947970149,17.2500533,4535.2,4535.1,0.011]
[1759947971136,18.2500533,4535.2,4535.1,0.011]
[1759947976108,11.3434533,4535.2,4535.1,0.011]
[1759947978299,17.6154533,4535.2,4535.1,0.011]
[1759947978675,6.93031531,4535.2,4535.1,0.011]
[1759947980571,5.82911531,4535.2,4535.1,0.011]
[1759947980800,5.9305794,4535.2,4535.1,0.011]
[1759947981669,4.12497442,4535.2,4535.1,0.011]
[1759947982101,2.20495712,4535.3,4535.1,0.011]
[1759947982309,0.4749889,4535.8,4535.1,0.011]
[1759947982603,2.20496483,4535.3,4535.1,0.011]
[1759947982787,0.1012,4535.8,4535.1,0.011]
[1759947982987,2.20497442,4535.2,4535.1,0.011]
[1759947987906,2.30617442,4535.2,4535.1,0.011]
[1759947989597,2.20497442,4535.2,4535.1,0.011]
[1759947990583,2.30617442,4535.2,4535.1,0.011]
[1759947991801,2.20497442,4535.2,4535.1,0.011]
[1759947995216,2.30617442,4535.2,4535.1,0.011]
[1759947995412,2.20497442,4535.2,4535.1,0.011]
[1759947995613,7.17042053,4535.2,4535.1,0.011]
[1759947995818,7.25870467,4535.2,4535.1,0.011]
[1759947997121,2.74436668,4535.2,4535.1,0.011]
[1759947997320,2.29325856,4535.2,4535.1,0.011]
[1759947997829,2.39445856,4535.2,4535.1,0.011]
[1759948000788,8.72759655,4535.2,4535.1,0.011]
[1759948001023,10.04204113,4535.2,4535.1,0.011]
[1759948002407,11.04204113,4535.2,4535.1,0.011]
[1759948002609,13.05308033,4535.2,4535.1,0.011]
[1759948003427,19.32308033,4535.2,4535.1,0.011]
[1759948004536,13.05308033,4535.2,4535.1,0.011]
[1759948004740,0.5934441,4536.5,4535.1,0.011]
[1759948004891,0.20611292,4536.4,4535.2,0.6336]
[1759948005093,0.002,4536.6,4535.2,0.6336]
[1759948005094,0.002,4536.6,4535.8,0.1096]
[1759948005492,0.002,4536.6,4536.0,2.20458553]
[1759948005710,0.002,4536.6,4536.0,8.47358553]
[1759948005912,0.002,4536.6,4536.5,2.20434255]
[1759948006112,0.002,4536.8,4536.7,2.20424537]
[1759948006426,0.002,4536.8,4536.7,8.47324537]
[1759948006596,0.002,4536.8,4536.7,8.99226447]
[1759948007800,0.002,4536.8,4536.7,9.62586447]
[1759948008015,0.002,4536.8,4536.7,12.79055571]
[1759948009031,0.002,4536.8,4536.7,6.52155571]
[1759948009232,0.002,4536.8,4536.7,6.3562191]
[1759948009533,0.002,4536.8,4536.7,8.56046447]
[1759948009717,0.002,4536.8,4536.7,6.3562191]
[1759948010033,0.002,4536.8,4536.7,8.90304537]
[1759948010595,0.002,4536.8,4536.7,6.6988]
[1759948010802,0.002,4536.8,4536.7,7.84861907]
[1759948011002,0.002,4536.8,4536.7,10.05286444]
[1759948011199,0.002,4536.8,4534.7,0.215]
[1759948011200,2.20624443,4536.8,4534.7,0.215]
[1759948011500,2.20429396,4536.6,4535.4,2.20486153]
[1759948011718,2.20429396,4536.6,4535.5,2.20480617]
[1759948011935,2.20429396,4536.6,4535.6,2.20477288]
[1759948012137,2.20429396,4536.6,4535.7,6.267]
[1759948012330,2.20429396,4536.6,4535.8,2.20468274]
[1759948012644,2.20430614,4536.6,4535.7,7.11417729]
[1759948013240,0.1051,4536.7,4535.1,0.011]
[1759948013444,0.217,4536.8,4535.1,0.011]
[1759948013445,2.20487101,4535.5,4535.2,6.266]
[1759948013602,1.92,4535.7,4535.1,0.011]
[1759948013603,2.31042507,4535.4,4535.1,0.011]
[1759948013948,2.31042507,4535.4,4535.1,6.277]
[1759948014649,2.31043658,4535.3,4535.1,6.277]
[1759948014809,0.1055,4535.3,4535.1,6.277]
[1759948015842,2.20489527,4535.4,4535.1,6.277]
[1759948015843,2.31047442,4535.2,4535.1,6.277]
[1759948017116,2.58206823,4535.6,4535.1,6.277]
[1759948017444,2.20493889,4535.3,4535.1,6.277]
[1759948018416,2.20497191,4535.3,4535.1,6.277]
[1759948018742,2.20483189,4535.5,4535.1,6.277]
[1759948018943,2.2049658,4535.3,4535.1,6.277]
[1759948019285,2.20482857,4535.5,4535.1,6.277]
[1759948019577,2.20497442,4535.2,4535.1,6.277]
[1759948020973,2.31047442,4535.2,4535.1,0.011]
[1759948021675,2.97260841,4535.2,4535.1,0.011]
[1759948023578,5.41035798,4535.2,4535.1,0.011]
[1759948026483,5.30485798,4535.2,4535.1,0.011]
[1759948026895,5.41035798,4535.2,4535.1,0.011]
[1759948031906,9.22405042,4535.2,4535.1,0.011]
[1759948032072,5.30485798,4535.2,4535.1,0.011]
[1759948032267,4.89260841,4535.2,4535.1,0.011]
[1759948034205,8.70630085,4535.2,4535.1,0.011]
[1759948036593,9.33990085,4535.2,4535.1,1e-08]
[1759948037604,2.20526158,4534.7,4534.1,0.011]
[1759948037792,6.65275316,4534.2,4534.1,0.011]
[1759948038150,14.83875316,4534.2,4534.1,0.011]
[1759948038288,14.94425316,4534.2,4534.1,0.011]
[1759948038489,4.12546072,4534.2,4534.1,0.011]
[1759948038793,4.31927624,4534.2,4534.1,0.011]
[1759948039323,5.97971222,4534.2,4534.1,0.011]
[1759948040213,4.31927624,4534.2,4534.1,0.011]
[1759948041192,4.52493707,4534.2,4534.1,0.011]
[1759948043609,4.21377624,4534.2,4534.1,0.011]
[1759948043809,4.31927624,4534.2,4534.1,0.011]
[1759948044233,4.5250762,4534.2,4534.1,0.011]
[1759948044817,5.19812293,4534.2,4534.1,0.011]
[1759948045143,5.67227361,4534.2,4534.1,0.011]
[1759948048654,4.4195762,4534.2,4534.1,0.011]
[1759948048858,4.21377624,4534.2,4534.1,0.011]
[1759948049153,4.31927624,4534.2,4534.1,0.011]
[1759948049566,4.52511434,4534.2,4534.1,0.011]
[1759948050756,4.9992788,4534.2,4534.1,0.011]
[1759948051552,4.52511434,4534.2,4534.1,0.011]
[1759948052069,4.99947948,4534.2,4534.1,0.011]
[1759948052456,4.52511434,4534.2,4534.1,0.011]
[1759948053570,0.79226956,4535.2,4534.2,2.66947721]
[1759948053770,2.76909211,4537.3,4536.7,2.20424537]
[1759948053771,0.79282593,4537.1,4536.7,2.20424537]
[1759948053971,0.002,4537.1,4536.7,8.57424537]
[1759948054265,0.002,4537.1,4536.7,8.47024537]
[1759948054465,0.002,4537.1,4536.7,14.0520059]
[1759948054771,0.002,4537.1,4536.7,14.14021489]
[1759948054973,0.002,4537.1,4537.0,2.83769962]
[1759948055141,0.002,4537.1,4537.0,4.77974061]
[1759948055467,0.002,4537.1,4537.0,4.75769962]
[1759948057786,0.002,4537.1,4537.0,2.20409962]
[1759948057985,0.002,4537.1,4537.0,10.76109962]
[1759948062572,0.002,4537.1,4536.7,0.44179392]
[1759948062885,0.002,4537.1,4537.0,2.20409962]
[1759948063091,0.002,4537.1,4537.0,4.49709962]
[1759948067603,0.002,4537.1,4537.0,8.46409962]
[1759948067806,0.002,4537.1,4537.0,10.75609962]
[1759948071612,0.002,4537.1,4536.8,2.20519679]
[1759948071613,0.002,4537.1,4536.8,0.001]
[1759948071801,0.002,4537.1,4537.0,6.259]
[1759948072112,0.002,4537.1,4537.0,8.46309962]
[1759948072522,0.002,4537.1,4537.0,6.259]
[1759948074011,0.002,4537.1,4536.8,2.20515421]
[1759948074307,0.002,4537.1,4537.0,6.259]
[1759948076294,0.002,4537.1,4537.0,8.551]
[1759948077500,0.002,4537.1,4536.9,2.20414736]
[1759948077679,0.002,4537.1,4537.0,8.55]
[1759948077879,0.002,4537.1,4536.9,2.20413466]
[1759948078109,0.002,4537.1,4537.0,8.55]
[1759948078883,0.4657,4537.1,4536.8,0.001]
[1759948079078,0.4637,4537.0,4536.8,0.001]
[1759948079281,0.4637,4537.0,4536.9,2.329]
[1759948079727,2.2041482,4536.9,4536.8,0.001]
[1759948079911,2.2041482,4536.9,4536.8,0.003]
[1759948080221,2.6678482,4536.9,4536.8,0.166]
[1759948080391,3.15523819,4536.9,4536.8,0.166]
[1759948080591,0.95108999,4536.9,4536.8,0.166]
[1759948080792,0.4637,4536.9,4536.8,0.166]
[1759948081022,0.002,4537.1,4536.8,0.166]
[1759948081193,2.66975125,4537.1,4536.8,0.166]
[1759948081395,2.66780002,4537.0,4536.8,0.166]
[1759948081899,0.4637,4536.9,4536.8,0.166]
[1759948082104,0.4637,4536.9,4536.8,6.193]
[1759948082906,2.6678482,4536.9,4536.8,6.193]
[1759948084225,2.6678482,4536.9,4536.8,0.001]
[1759948084420,2.6678482,4536.9,4536.8,6.259]
[1759948084421,3.15524055,4536.9,4536.8,6.259]
[1759948085213,3.15524055,4536.9,4536.8,0.001]
[1759948085522,5.07524055,4536.9,4536.8,0.001]
[1759948089534,5.70884055,4536.9,4536.8,0.001]
[1759948089696,5.91464555,4536.9,4536.8,0.001]
[1759948090496,6.388694,4536.9,4536.8,0.001]
[1759948092416,5.91464555,4536.9,4536.8,0.001]
[1759948093123,6.38828442,4536.9,4536.8,0.001]
[1759948095147,6.38828442,4536.9,4536.3,0.001]
[1759948095148,4.75799114,4536.4,4536.3,1e-08]
[1759948095348,11.82182254,4536.4,4536.3,1e-08]
[1759948095552,12.28552254,4536.4,4536.3,1e-08]
[1759948095753,12.49087668,4536.4,4536.3,1e-08]
[1759948096253,12.28552254,4536.4,4536.3,1e-08]
[1759948096552,12.49084312,4536.4,4536.3,1e-08]
[1759948100956,12.38124312,4536.4,4536.3,1e-08]
[1759948104329,12.17592254,4536.4,4536.3,1e-08]
[1759948104726,12.38131583,4536.4,4536.3,1e-08]
[1759948105863,12.38331583,4536.4,4536.3,1e-08]
[1759948107265,12.85666851,4536.4,4536.3,1e-08]
[1759948115380,13.44918558,4536.4,4536.3,1e-08]
[1759948116080,17.86215408,4536.4,4536.3,1e-08]
[1759948116546,2.20468274,4535.8,4535.3,1e-08]
[1759948116746,7.47154568,4535.4,4535.3,1e-08]
[1759948116949,16.32829165,4535.4,4535.3,1e-08]
[1759948117358,16.78709165,4535.4,4535.3,1e-08]
[1759948118006,16.89571018,4535.4,4535.3,1e-08]
[1759948118572,12.48274168,4535.4,4535.3,1e-08]
[1759948118762,18.42123001,4535.4,4535.3,1e-08]
[1759948118965,12.16323001,4535.4,4535.3,1e-08]
[1759948119166,2.34614343,4535.4,4535.3,1e-08]
[1759948119373,2.5989,4535.4,4535.3,1e-08]
[1759948119577,0.6789,4535.8,4535.3,1e-08]
[1759948119766,2.8836053,4535.8,4535.3,1e-08]
[1759948119951,2.2047996,4535.6,4535.3,1e-08]
[1759948120145,2.2048428,4535.5,4535.3,1e-08]
[1759948120350,0.4588,4535.6,4535.3,1e-08]
[1759948120549,2.66358471,4535.6,4535.3,1e-08]
[1759948120885,2.20482857,4535.5,4535.3,1e-08]
[1759948121059,2.20487718,4535.4,4535.3,1e-08]
[1759948121255,2.66367718,4535.4,4535.3,1e-08]
[1759948123868,4.58367718,4535.4,4535.3,1e-08]
[1759948125904,4.12487718,4535.4,4535.3,1e-08]
[1759948126058,4.59797718,4535.4,4535.3,1e-08]
[1759948127904,4.80428062,4535.4,4535.3,1e-08]
[1759948128404,4.80428131,4535.4,4535.3,1e-08]
[1759948128571,4.59797718,4535.4,4535.3,1e-08]
[1759948130412,4.59797718,4535.4,4535.1,0.01]
[1759948130413,2.20497442,4535.2,4535.1,1e-08]
[1759948130723,2.88652315,4535.2,4535.1,1e-08]
[1759948130915,3.35962315,4535.2,4535.1,1e-08]
[1759948133786,3.35949545,4535.2,4535.1,1e-08]
[1759948134311,2.88436923,4535.2,4535.1,1e-08]
[1759948134531,10.54698654,4535.2,4535.1,1e-08]
[1759948135385,10.34069173,4535.2,4535.1,1e-08]
[1759948135579,10.54689628,4535.2,4535.1,1e-08]
[1759948137462,13.57559429,4535.2,4535.1,1e-08]
[1759948141252,13.57559429,4535.2,4535.1,0.00100001]
[1759948141410,13.57759429,4535.2,4535.1,0.00100001]
[1759948141811,17.99203561,4535.2,4535.1,0.00100001]
[1759948143636,11.73503561,4535.2,4535.1,0.00100001]
[1759948144035,17.99203561,4535.2,4535.1,0.00100001]
[1759948146422,17.99193785,4535.2,4535.1,0.00100001]
[1759948151349,17.99196044,4535.2,4535.1,0.00100001]
[1759948151879,25.13196044,4535.2,4535.1,0.00100001]
[1759948155579,5.28130181,4535.2,4535.1,0.00100001]
[1759948155879,2.4131038,4535.2,4535.1,0.00100001]
[1759948156193,0.20812938,4535.2,4535.1,0.00100001]
[1759948156392,0.002,4535.2,4535.1,0.00100001]
[1759948156751,2.20697442,4535.2,4535.1,0.00100001]
[1759948157493,2.66987442,4535.2,4535.1,0.00100001]
[1759948159096,4.58987442,4535.2,4535.1,0.00100001]
[1759948159295,5.85667834,4535.2,4535.1,0.00100001]
[1759948160508,5.8567081,4535.2,4535.1,0.00100001]
[1759948160795,12.1117081,4535.2,4535.1,0.00100001]
[1759948161371,17.03237194,4535.2,4535.1,0.00100001]
[1759948162171,13.22015322,4535.2,4535.1,0.00100001]
[1759948163205,17.03237194,4535.2,4535.1,0.00100001]
[1759948163368,12.38315772,4534.9,4534.8,0.001]
[1759948163574,2.20521754,4534.7,4534.6,0.001]
[1759948163813,2.20541208,4534.3,4532.6,2.305]
[1759948163977,2.20541208,4534.3,4532.1,0.01]
[1759948163978,11.97318467,4533.2,4532.1,0.01]
[1759948164167,8.36710196,4533.2,4532.2,2.354]
[1759948164501,8.81310196,4533.2,4532.2,2.354]
[1759948165404,8.60696595,4533.2,4532.2,2.354]
[1759948167991,1.92,4533.2,4532.2,2.354]
[1759948168192,2.366,4533.2,4532.3,0.1096]
[1759948168521,4.57194723,4533.2,4532.1,0.01]
[1759948168686,4.57194723,4533.2,4532.6,3.687]
[1759948168885,4.57194723,4533.2,4532.1,0.01]
[1759948169123,4.57194723,4533.2,4532.5,2.387]
[1759948169507,8.38416595,4533.2,4532.5,2.387]
[1759948170926,8.38416595,4533.2,4532.1,0.01]
[1759948171095,8.38416595,4533.2,4532.3,0.045]
[1759948171309,8.38416595,4533.2,4532.3,2.339]
[1759948173508,8.38416595,4533.2,4532.3,2.36106385]
[1759948174311,8.38416595,4533.2,4532.3,2.339]
[1759948174818,8.38416595,4533.2,4532.1,0.01]
[1759948175124,8.38416595,4533.2,4532.3,4.408]
[1759948175602,8.38416595,4533.2,4532.2,3.81]
[1759948175806,8.38416595,4533.2,4532.2,6.104]
[1759948176208,8.38416595,4533.2,4533.1,0.011]
[1759948178731,1.92,4533.2,4533.1,0.011]
[1759948178927,4.57194723,4533.2,4533.1,0.011]
[1759948179628,8.38416595,4533.2,4533.1,0.011]
[1759948181731,4.57194723,4533.2,4533.1,0.011]
[1759948181927,8.38416595,4533.2,4533.1,0.011]
[1759948182908,4.57194723,4533.2,4533.1,0.011]
[1759948183110,8.38416595,4533.2,4533.1,0.011]
[1759948184524,4.12594723,4533.2,4533.1,0.011]
[1759948184726,8.38246595,4533.2,4533.1,0.011]
[1759948185746,9.44129797,4533.2,4533.1,0.011]
[1759948187241,8.38246595,4533.2,4533.1,0.011]
[1759948190263,8.58873809,4533.2,4533.1,0.011]
[1759948191455,4.33221937,4533.2,4533.1,0.011]
[1759948191657,4.77651937,4533.2,4533.1,0.011]
[1759948193167,5.25294767,4533.2,4533.1,0.011]
[1759948193373,7.00554974,4533.2,4533.1,0.011]
[1759948193538,17.70636846,4533.2,4533.1,0.011]
[1759948194465,18.30054461,4533.2,4533.1,0.011]
[1759948195257,17.70636846,4533.2,4533.1,0.011]
[1759948195456,18.30054461,4533.2,4533.1,0.011]
[1759948196277,17.70636846,4533.2,4533.1,0.011]
[1759948197336,17.70636846,4533.2,4533.1,1e-08]
[1759948197938,13.89414974,4533.2,4533.1,1e-08]
[1759948198134,21.51858718,4533.2,4533.1,1e-08]
[1759948198561,22.1135915,4533.2,4533.1,1e-08]
[1759948198840,15.8585915,4533.2,4533.1,1e-08]
[1759948199040,22.1135915,4533.2,4533.1,1e-08]
[1759948199771,17.66777278,4533.2,4533.1,1e-08]
[1759948199938,17.07276846,4533.2,4533.1,1e-08]
[1759948200340,15.32016639,4533.2,4533.1,1e-08]
[1759948200540,9.06516639,4533.2,4533.1,1e-08]
[1759948200735,9.06463188,4533.2,4533.1,1e-08]
[1759948200979,5.25241316,4533.2,4533.1,1e-08]
[1759948201341,4.80811316,4533.2,4533.1,1e-08]
[1759948201669,4.33221937,4533.2,4533.1,1e-08]
[1759948201876,4.77291937,4533.2,4533.1,1e-08]
[1759948202572,5.24877441,4533.2,4533.1,1e-08]
[1759948202778,7.00096079,4533.2,4533.1,1e-08]
[1759948203363,10.81317951,4533.2,4533.1,1e-08]
[1759948203567,11.44677951,4533.2,4533.1,1e-08]
[1759948203783,12.04164675,4533.2,4533.1,1e-08]
[1759948204166,11.44677951,4533.2,4533.1,1e-08]
[1759948204350,7.63456079,4533.2,4533.1,1e-08]
[1759948204556,8.22942803,4533.2,4533.1,1e-08]
[1759948204765,7.00096079,4533.2,4533.1,1e-08]
[1759948204957,15.31599313,4533.2,4533.1,1e-08]
[1759948206666,4.80807441,4533.2,4533.1,1e-08]
[1759948206854,5.24877441,4533.2,4533.1,1e-08]
[1759948207572,9.06099313,4533.2,4533.1,1e-08]
[1759948210161,15.31599313,4533.2,4533.1,1e-08]
[1759948211797,20.88039823,4533.2,4533.1,1e-08]
[1759948211970,17.06817951,4533.2,4533.1,1e-08]
[1759948212603,21.51399823,4533.2,4533.1,1e-08]
[1759948213403,22.10886547,4533.2,4533.1,1e-08]
[1759948214089,18.29664675,4533.2,4533.1,1e-08]
[1759948214715,22.10886547,4533.2,4533.1,1e-08]
[1759948215771,18.29664675,4533.2,4533.1,1e-08]
[1759948218006,18.90224981,4533.2,4533.1,1e-08]
[1759948220614,12.64724981,4533.2,4533.1,1e-08]
[1759948220828,5.40294165,4533.2,4533.1,1e-08]
[1759948221031,9.66659619,4533.2,4533.1,1e-08]
[1759948221315,5.24877441,4533.2,4533.1,1e-08]
[1759948221627,11.50277441,4533.2,4533.1,1e-08]
[1759948224323,15.92080999,4533.2,4533.1,1e-08]
[1759948224520,18.36707806,4533.2,4533.1,1e-08]
[1759948224879,18.9619453,4533.2,4533.1,1e-08]
[1759948225845,1.92,4533.1,4532.6,0.001]
[1759948226025,9.17761235,4532.7,4532.6,0.001]
[1759948226223,16.11395333,4532.7,4532.6,0.001]
[1759948226420,18.69663608,4532.7,4532.6,0.001]
[1759948227199,19.29110054,4532.7,4532.6,0.001]
[1759948228133,18.69663608,4532.7,4532.6,0.001]
[1759948228302,0.6336,4532.0,4531.6,0.001]
[1759948228509,10.00495406,4531.7,4531.6,0.001]
[1759948228728,18.8877337,4531.7,4531.6,0.001]
[1759948228904,19.3494337,4531.7,4531.6,0.001]
[1759948229104,18.75473418,4531.7,4531.6,0.001]
[1759948231754,11.86713418,4531.7,4531.6,0.001]
[1759948232078,11.75687374,4531.7,4531.6,0.001]
[1759948232440,5.50287374,4531.7,4531.6,0.001]
[1759948232645,16.17469552,4531.7,4531.6,0.001]
[1759948234343,16.80829552,4531.7,4531.6,0.001]
[1759948234541,18.70978575,4531.7,4531.6,0.001]
[1759948236762,11.82218575,4531.7,4531.6,0.001]
[1759948236965,16.17469552,4531.7,4531.6,0.001]
[1759948239348,16.80829552,4531.7,4531.6,0.001]
[1759948240499,16.17469552,4531.7,4531.6,0.001]
[1759948240800,10.8423774,4531.7,4531.6,0.001]
[1759948243592,4.5883774,4531.7,4531.6,0.001]
[1759948249982,12.58905799,4531.7,4531.6,0.001]
[1759948250913,11.04840348,4531.7,4531.6,0.001]
[1759948251614,4.33270348,4531.7,4531.6,0.001]
[1759948251784,0.002,4532.1,4531.6,0.001]
[1759948251785,2.20666504,4531.8,4531.6,0.001]
[1759948251994,0.002,4532.1,4531.6,0.001]
[1759948252395,0.002,4532.1,4531.6,0.02306726]
[1759948252598,0.002,4532.1,4531.6,0.25867399]
[1759948253494,0.1096,4531.7,4531.6,0.23660673]
[1759948253801,0.1096,4531.7,4531.6,2.44333283]
[1759948254199,0.1096,4531.7,4531.6,2.46540009]
[1759948254397,0.1096,4532.0,4531.7,2.2066774]
[1759948254627,0.1096,4532.0,4531.9,2.20653177]
[1759948255738,0.002,4532.1,4532.0,2.20653133]
[1759948258914,0.002,4532.1,4532.0,8.45853133]
[1759948259228,0.002,4532.1,4532.0,9.1208729]
[1759948260534,0.002,4532.1,4532.0,2.8688729]
[1759948260743,0.002,4532.1,4532.0,0.58682187]
[1759948261054,0.002,4532.1,4531.9,0.1096]
[1759948261055,0.1096,4532.0,4531.6,0.23660673]
[1759948261235,0.002,4532.1,4531.6,0.23660673]
[1759948261236,0.002,4532.1,4531.9,2.857]
[1759948261823,0.002,4532.1,4531.9,5.06356566]
[1759948262029,0.002,4532.1,4531.9,2.857]
[1759948262543,0.002,4532.1,4532.0,2.20653133]
[1759948262731,0.002,4532.1,4532.0,3.1630494]
[1759948262937,0.002,4532.1,4532.0,3.18511471]
[1759948263438,0.002,4532.1,4532.0,3.1630494]
[1759948263837,0.002,4532.1,4532.0,11.7090494]
[1759948266960,0.002,4532.1,4532.0,0.95651807]
[1759948267261,0.002,4532.1,4532.0,10.75253133]
[1759948269551,0.002,4532.1,4532.0,2.20653133]
[1759948269749,0.002,4532.1,4532.0,10.75253133]
[1759948271336,0.002,4532.1,4532.0,12.67253133]
[1759948271536,0.002,4532.1,4532.0,13.41573133]
[1759948271738,0.002,4532.1,4532.0,13.82201524]
[1759948272148,0.002,4532.1,4532.0,13.52733133]
[1759948272389,0.002,4532.6,4532.0,13.52733133]
[1759948272390,1e-08,4532.6,4532.5,2.83988792]
[1759948272539,1e-08,4532.6,4532.5,9.08988792]
[1759948272743,1e-08,4532.6,4532.5,9.19948792]
[1759948273761,1e-08,4532.6,4532.5,12.34835191]
[1759948275980,1e-08,4532.6,4532.5,6.09835191]
[1759948276179,1e-08,4532.6,4532.5,23.82035191]